Cogmind - Beta 9.3 @@@ ROGUE MODE // 2020.01.16 @ 22:38:42 // Winter2019/RPGLIKE Player: badjay Result: Destroyed by G-47 Trooper with Particle Gun Performance ------------- Evolutions (2) 1000 Regions Visited (7) 1400 Robots Destroyed (86) 430 Value Destroyed (2418) 2418 Prototype IDs (13) 260 Alien Tech Used (0) 0 Bonus (12) 12 TOTAL SCORE: 5520 Bonus ------- High Alert Combat Kills 12 Cogmind --------- Core Integrity 0/700 Matter 280/300 Energy 150/150 System Corruption 0% Temperature Cool (9) Movement Flying (32) Location -8/Materials Parts ------- > --- POWER (1) -------- Light Angular Momentum Engine > --- PROPULSION (2) --- Improved Flight Unit Improved VTOL Module > --- UTILITY (8) ------ Melee Analysis Suite Melee Analysis Suite Melee Analysis Suite Target Analyzer > --- WEAPON (2) ------- Flail Maul > --- INVENTORY (1) ---- Improved Datajack Peak State ------------ > --- POWER ------------ Light Angular Momentum Engine > --- PROPULSION ------- Improved Flight Unit Improved Flight Unit > --- UTILITY ---------- Melee Analysis Suite Melee Analysis Suite Melee Analysis Suite Target Analyzer Maneuvering Thrusters > --- WEAPON ----------- Flail Flail > --- INVENTORY -------- Improved Datajack [Rating: 30] Favorites ----------- Power Light Angular Momentum Engine Engine Light Angular Momentum Engine Power Core Light Nuclear Core Propulsion Improved Flight Unit Flight Unit Improved Flight Unit Utility Target Analyzer Device Maneuvering Thrusters Processor Target Analyzer Weapon Flail Ballistic Cannon Light Cannon Impact Weapon Flail Slashing Weapon Mining Claw Special Melee Weapon Datajack Build | -11 -10 -10 -9 -9 -9 -8 -8 ------- Run | Scr Mat Min Mat Min Exi Min Mat Slots Evolved 9 | . 1 . 2 . . . 6 Power . | . . . . . . . . Propulsion 1 | . 1 . . . . . . Utility 7 | . . . 1 . . . 6 Weapon 1 | . . . 1 . . . . Parts Attached 28 | . 9 2 11 . . . 6 Power 5 | . 1 1 2 . . . 1 Engine 4 | . 1 . 2 . . . 1 Core 1 | . . 1 . . . . . Reactor . | . . . . . . . . Propulsion 10 | . 4 . 5 . . . 1 Treads . | . . . . . . . . Leg . | . . . . . . . . Wheel . | . . . . . . . . Hover . | . . . . . . . . Flight 10 | . 4 . 5 . . . 1 Utility 6 | . 1 1 1 . . . 3 Device 1 | . . . 1 . . . . Storage . | . . . . . . . . Processor 5 | . 1 1 . . . . 3 Hackware . | . . . . . . . . Protection . | . . . . . . . . Artifact . | . . . . . . . . Weapon 7 | . 3 . 3 . . . 1 Energy Gun . | . . . . . . . . Energy Cannon . | . . . . . . . . Ballistic Gun . | . . . . . . . . Ballistic Cannon 1 | . 1 . . . . . . Launcher . | . . . . . . . . Special Weapon . | . . . . . . . . Impact Weapon 4 | . 1 . 2 . . . 1 Slashing Weapon 1 | . . . 1 . . . . Piercing Weapon . | . . . . . . . . Special Melee Weapon 1 | . 1 . . . . . . Unidentified Prototypes 1 | . . . . . . . 1 Parts Lost 4 | . . 1 2 . . . 1 Power 2 | . . 1 1 . . . . Propulsion 1 | . . . 1 . . . . Utility 1 | . . . . . . . 1 Weapon . | . . . . . . . . Highest Loss Streak 1 | . . 1 1 . . . 1 Average Slot Usage (%) 94 | . 88 100 99 100 100 100 80 Engine 13 | . 16 16 14 14 14 14 8 Core 1 | . . 3 2 . . . . Flight 30 | . 38 40 34 28 28 28 18 Device 7 | . . . 6 14 14 14 7 Processor 18 | . 14 20 17 14 14 14 25 Impact Weapon 22 | . 14 20 23 28 28 28 18 Naked Turns 11 | . 11 . . . . . . Heaviest Build 15 | . 6 7 14 14 14 14 15 Greatest Support 17 | 3 13 13 17 17 17 17 17 Greatest Overweight (x) . | . . . . . . . . Average Overweight (x) . | . . . . . . . . Largest Inventory Capacity 1 | . 1 1 1 1 1 1 1 Average Capacity . | . . 1 1 1 1 1 1 Most Carried 1 | . 1 1 1 1 1 1 1 Average Carried . | . . 1 1 1 1 1 1 Final Capacity 1 | . 1 1 1 1 1 1 1 Final Carried 1 | . 1 1 1 1 1 1 1 Class Distribution -------------------- 50% | Hacker-Mutant 49% | Hacker-Sprinter Dominant Class ---------------- Hacker-Mutant | -10/Materials Hacker-Mutant | -10/Mines Hacker-Mutant | -9/Materials Hacker-Sprinter | -9/Mines Hacker-Sprinter | -9/Exiles Hacker-Sprinter | -8/Mines Hacker-Sprinter | -8/Materials Resources | -11 -10 -10 -9 -9 -9 -8 -8 ----------- Run | Scr Mat Min Mat Min Exi Min Mat Matter Collected 460 | 200 18 92 90 . . 20 40 Remotely . | . . . . . . . . Salvage Created 2551 | . 111 275 929 . . 586 650 Parts 103 | . 9 10 51 . . 17 16 Haulers Intercepted 8 | . . . 5 . . . 3 Recyclers Shooed . | . . . . . . . . Parts Field Recycled . | . . . . . . . . Retrieved Matter . | . . . . . . . . Parts Self-Destructed . | . . . . . . . . Prevented . | . . . . . . . . Kills | -11 -10 -10 -9 -9 -9 -8 -8 ------- Run | Scr Mat Min Mat Min Exi Min Mat Combat Hostiles Destroyed 77 | . 9 9 20 . . 21 18 Melee 47 | . 5 5 15 . . 12 10 Classes Destroyed 8 | . 1 1 3 . . 1 2 Hauler 8 | . . . 5 . . . 3 Watcher 1 | . . . . . . . 1 Swarmer 30 | . 9 3 7 . . . 11 Grunt 36 | . . 6 7 . . 18 5 Brawler 3 | . . . . . . 3 . Duelist 1 | . . . 1 . . . . Sentry 6 | . . . 5 . . . 1 Hunter 1 | . . . . . . . 1 Best Kill Streak 9 | . 3 2 5 . . 3 9 Combat Bots Only 8 | . 3 2 5 . . 3 8 Max Kills in Single Turn 1 | . 1 1 1 . . 1 1 Gunslinging . | . . . . . . . . Exploded . | . . . . . . . . Melee 1 | . 1 1 1 . . 1 1 Uniques/NPCs Destroyed . | . . . . . . . . Combat | -11 -10 -10 -9 -9 -9 -8 -8 -------- Run | Scr Mat Min Mat Min Exi Min Mat Damage Taken 3838 | . 320 423 924 61 . 1269 841 Core 3298 | . 274 353 791 47 . 1098 735 Absorbed by Shields . | . . . . . . . . Redirected to Core 1792 | . 134 223 436 47 . 592 360 Core Remaining (%) 74 | 100 . 57 . . . 66 . Volleys Fired . | . . . . . . . . Largest . | . . . . . . . . Hottest . | . . . . . . . . Shots Fired . | . . . . . . . . Gun . | . . . . . . . . Cannon . | . . . . . . . . Launcher . | . . . . . . . . Special . | . . . . . . . . Kinetic . | . . . . . . . . Thermal . | . . . . . . . . Explosive . | . . . . . . . . Electromagnetic . | . . . . . . . . Robot Hit Streak . | . . . . . . . . Robot Miss Streak . | . . . . . . . . Penetration Max . | . . . . . . . . Secondary Targets . | . . . . . . . . Shots Hit Robots 350 | . 27 33 89 . . 107 94 Core Hits 65 | . 5 6 22 . . 21 11 Critical Hits . | . . . . . . . . Critical Kills . | . . . . . . . . Critical Parts Destroyed . | . . . . . . . . Melee Attacks 393 | . 35 39 100 . . 116 103 Impact 387 | . 29 39 100 . . 116 103 Slashing . | . . . . . . . . Piercing . | . . . . . . . . Sneak Attacks 17 | . 4 . 6 . . 4 3 Combat Hostiles 4 | . . . . . . 4 . Follow-up Attacks 34 | . . . 8 . . 14 12 Damage Inflicted 9522 | . 551 800 2315 . . 3096 2760 Guns . | . . . . . . . . Cannons . | . . . . . . . . Explosions . | . . . . . . . . Melee 9522 | . 551 800 2315 . . 3096 2760 Ramming . | . . . . . . . . Kinetic . | . . . . . . . . Thermal . | . . . . . . . . Explosive . | . . . . . . . . Electromagnetic . | . . . . . . . . Impact 9522 | . 551 800 2315 . . 3096 2760 Slashing . | . . . . . . . . Piercing . | . . . . . . . . Highest Corruption . | . . . . . . . . Average Corruption . | . . . . . . . . Corruption Purged . | . . . . . . . . Overload Shots . | . . . . . . . . Overflow Damage 990 | . 59 40 224 . . 256 411 Projectiles . | . . . . . . . . Explosions . | . . . . . . . . Melee 990 | . 59 40 224 . . 256 411 Knockbacks 27 | . 3 2 6 . . 7 9 Impact 26 | . 3 2 6 . . 7 8 Kinetic . | . . . . . . . . Secondary 1 | . . . . . . . 1 Self-Inflicted Damage . | . . . . . . . . Shots . | . . . . . . . . Rammed . | . . . . . . . . Targets Rammed . | . . . . . . . . Kicked . | . . . . . . . . Crushed . | . . . . . . . . Highest Temperature . | . . . . . . . . Average Temperature . | . . . . . . . . Received Heat Transfer 1242 | . . 147 267 . . 576 252 Siege Activations . | . . . . . . . . Robots Corrupted . | . . . . . . . . Combat Hostiles . | . . . . . . . . Parts Fried 39 | . 3 4 4 . . 12 16 Impact Corruptions 72 | . 7 7 11 . . 18 29 Robots Melted . | . . . . . . . . Combat Hostiles . | . . . . . . . . Parts Melted . | . . . . . . . . Heat Transferred . | . . . . . . . . Parts Sabotaged . | . . . . . . . . Parts Stolen . | . . . . . . . . Parts Stripped . | . . . . . . . . Power Chain Reactions . | . . . . . . . . Missiles Intercepted . | . . . . . . . . Alert | -11 -10 -10 -9 -9 -9 -8 -8 ------- Run | Scr Mat Min Mat Min Exi Min Mat Peak Influence 555 | . 327 325 399 170 . 331 555 Average Influence 202 | . 132 207 191 126 . 196 267 Maximum Alert Level 2 | . 1 1 1 . . 1 2 Low Security (%) 47 | 100 62 48 49 100 . 48 27 Level 1 50 | . 37 51 50 . . 51 63 Level 2 1 | . . . . . . . 9 Level 3 . | . . . . . . . . Level 4 . | . . . . . . . . Level 5 . | . . . . . . . . High Security . | . . . . . . . . Max Security . | . . . . . . . . Squads Dispatched 3 | . 1 . 2 . . . . Investigation 2 | . 1 . 1 . . . . Extermination . | . . . . . . . . Reinforcement 1 | . . . 1 . . . . Assault . | . . . . . . . . Garrison . | . . . . . . . . Intercept . | . . . . . . . . Construction Impeded . | . . . . . . . . Haulers Reinforced . | . . . . . . . . Stealth | -11 -10 -10 -9 -9 -9 -8 -8 --------- Run | Scr Mat Min Mat Min Exi Min Mat Distress Signals 9 | . . . 3 1 . . 5 Communications Jammed . | . . . . . . . . Distress Signals . | . . . . . . . . Times Spotted 130 | . 13 13 37 7 . 28 32 Peak Tracking Total 7 | . 5 3 5 7 . 3 7 Tactical Retreats 21 | . . 3 4 1 . 12 1 Traps | -11 -10 -10 -9 -9 -9 -8 -8 ------- Run | Scr Mat Min Mat Min Exi Min Mat Traps Triggered 1 | . . . 1 . . . . Indirectly . | . . . . . . . . Trap Hack Attempts . | . . . . . . . . Triggered . | . . . . . . . . Disarmed . | . . . . . . . . Reprogrammed . | . . . . . . . . Reused . | . . . . . . . . Traps Extracted . | . . . . . . . . Installed . | . . . . . . . . Triggered . | . . . . . . . . Machines | -11 -10 -10 -9 -9 -9 -8 -8 ---------- Run | Scr Mat Min Mat Min Exi Min Mat Machines Disabled 1 | . 1 . . . . . . Max in Single Turn 1 | . 1 . . . . . . Machines Sabotaged . | . . . . . . . . Garrisons Compromised . | . . . . . . . . Overloaded Fab Kills . | . . . . . . . . Fab Network Shutdowns . | . . . . . . . . Hacking | -11 -10 -10 -9 -9 -9 -8 -8 --------- Run | Scr Mat Min Mat Min Exi Min Mat Machines Accessed 19 | . 5 2 5 . 1 1 5 Terminals 16 | . 5 1 5 . . 1 4 Fabricators . | . . . . . . . . Repair Stations 1 | . . . . . . . 1 Recycling Units . | . . . . . . . . Scanalyzers . | . . . . . . . . Garrison Access . | . . . . . . . . Total Hacks 123 | . 28 10 43 . 5 4 33 Successful 75 | . 13 4 26 . 5 3 24 Failed 47 | . 14 6 17 . . 1 9 Catastrophic 4 | . . 2 . . . . 2 Database Lockouts 1 | . 1 . . . . . . Manual 95 | . 25 9 30 . . 4 27 Terminals 115 | . 28 9 43 . . 4 31 Fabricators . | . . . . . . . . Repair Stations 2 | . . . . . . . 2 Recycling Units . | . . . . . . . . Scanalyzers . | . . . . . . . . Garrison Access . | . . . . . . . . Terminal Hacks 46 | . 8 3 17 . 5 2 11 Record 5 | . . . . . 5 . . Part Schematic 2 | . . . . . . . 2 Prototype ID Bank 13 | . 4 . 5 . . 2 2 Open Door 1 | . . 1 . . . . . Level Access Points 4 | . 1 1 1 . . . 1 Branch Access Points 4 | . 1 1 1 . . . 1 Terminal Index 2 | . 1 . . . . . 1 Alert Level 4 | . . . 3 . . . 1 Unreport Threat 4 | . . . 2 . . . 2 Locate Traps 1 | . . . 1 . . . . Recall Investigation 1 | . . . 1 . . . . Recall Reinforcements 1 | . . . 1 . . . . Hauler Manifests 3 | . 1 . 1 . . . 1 Zone Layout 1 | . . . 1 . . . . Fabricator Hacks . | . . . . . . . . Repair Station Hacks 2 | . . . . . . . 2 Scan Component 1 | . . . . . . . 1 Repair 1 | . . . . . . . 1 Recycling Unit Hacks . | . . . . . . . . Scanalyzer . | . . . . . . . . Garrison Access Hacks . | . . . . . . . . Unauthorized Hacks 69 | . 17 2 24 . . 2 24 Terminals 27 | . 5 1 9 . . 1 11 Track 9 | . 1 1 3 . . . 4 Botnet 10 | . 3 . 3 . . . 4 Disrupt 6 | . 1 . 2 . . 1 2 Operators 2 | . . . 1 . . . 1 Fabricators . | . . . . . . . . Repair Stations . | . . . . . . . . Recycling Units . | . . . . . . . . Scanalyzers . | . . . . . . . . Garrison Access . | . . . . . . . . Data Cores Recovered . | . . . . . . . . Used . | . . . . . . . . Hacking Detections 15 | . 4 1 4 . . 1 5 Full Trace Events 1 | . . . 1 . . . . Feedback Events . | . . . . . . . . Feedback Blocked . | . . . . . . . . Robot Schematics Acquired . | . . . . . . . . Robots Built . | . . . . . . . . Matter . | . . . . . . . . Time . | . . . . . . . . Total Robot Build Rating . | . . . . . . . . Part Schematics Acquired 2 | . . . . . . . 2 Parts Built . | . . . . . . . . Matter . | . . . . . . . . Time . | . . . . . . . . Total Part Build Rating . | . . . . . . . . Parts Repaired 1 | . . . . . . . 1 Time 50 | . . . . . . . 50 Parts Recycled . | . . . . . . . . Recycled Matter . | . . . . . . . . Retrieved Matter . | . . . . . . . . Retrieved Components . | . . . . . . . . Parts Scanalyzed . | . . . . . . . . Part Schematics Acquired . | . . . . . . . . Parts Damaged . | . . . . . . . . Bothacking | -11 -10 -10 -9 -9 -9 -8 -8 ------------ Run | Scr Mat Min Mat Min Exi Min Mat Used RIF Installer . | . . . . . . . . Robots Hacked 2 | . 2 . . . . . . Non-combat 2 | . 2 . . . . . . Combat . | . . . . . . . . Robot Hacks Applied 3 | . 3 . . . . . . parse_system 2 | . 2 . . . . . . no_distress 1 | . 1 . . . . . . Relay Couplers Released . | . . . . . . . . Robots Rewired . | . . . . . . . . Allies Hacked . | . . . . . . . . Hacks Repelled . | . . . . . . . . Allies | -11 -10 -10 -9 -9 -9 -8 -8 -------- Run | Scr Mat Min Mat Min Exi Min Mat Total Allies 3 | . . . . 3 . . . Largest Group 3 | . . . . 3 . . . Highest-Rated Group 40 | . . . . 40 . . . Highest-Rated Ally 16 | . . . . 16 . . . Total Orders . | . . . . . . . . Ally Attacks 10 | . . . . 10 . . . Total Damage 112 | . . . . 112 . . . Kills 1 | . . . . 1 . . . Allies Corrupted . | . . . . . . . . Allies Melted . | . . . . . . . . Intel | -11 -10 -10 -9 -9 -9 -8 -8 ------- Run | Scr Mat Min Mat Min Exi Min Mat Robot Analysis Total . | . . . . . . . . Derelict Logs Recovered 1 | . . 1 . . . . . Drone Launches . | . . . . . . . . Drone Recoveries . | . . . . . . . . Exploration | -11 -10 -10 -9 -9 -9 -8 -8 ------------- Run | Scr Mat Min Mat Min Exi Min Mat Turns Passed 2862 | 13 303 460 702 65 41 694 584 Spaces Moved 3802 | 27 474 799 893 168 126 725 590 Core 47 | 27 20 . . . . . . Treads . | . . . . . . . . Legs . | . . . . . . . . Wheels . | . . . . . . . . Hover . | . . . . . . . . Flight 3755 | . 454 799 893 168 126 725 590 Fastest Speed 32 | 50 37 37 32 32 32 32 32 Average Speed 35 | 50 40 37 36 32 32 32 32 Slowest Speed 50 | 50 50 37 40 32 32 32 32 Overloaded Moves . | . . . . . . . . Propulsion Burnouts . | . . . . . . . . Robots Hopped 20 | . . 7 1 . . 12 . Cave-ins Triggered . | . . . . . . . . Exploration Rate (%) 60 | 3 83 98 76 36 49 96 42 Regions Visited 7 Branch Regions 4 Pre-discovered Areas 1 | . . . . . 1 . . Known Exits Taken 4 | . 1 1 1 . . 1 . Unknown Exits Taken 3 | 1 . . . 1 1 . . Scrap Searched 4 | . . 2 . 1 . 1 . Spaces Dug 4 | . . . 1 . . 1 2 Terrain Destroyed 4 | . . . 1 . . 1 2 Melee 4 | . . . 1 . . 1 2 Projectile . | . . . . . . . . AOE . | . . . . . . . . Actions | -11 -10 -10 -9 -9 -9 -8 -8 --------- Run | Scr Mat Min Mat Min Exi Min Mat Total 4746 | 26 535 896 1129 178 125 1021 836 Wait 443 | . 10 49 91 11 . 143 139 Move 3756 | 26 473 784 890 167 125 701 590 Hop 19 | . . 7 1 . . 11 . Pick Up 1 | . . . 1 . . . . Fast Attach 23 | . 7 2 8 . . . 6 Attach . | . . . . . . . . Detach 1 | . 1 . . . . . . Swap 5 | . 2 . 3 . . . . Drop 13 | . 3 1 7 . . . 2 Fire . | . . . . . . . . Melee 349 | . 35 39 88 . . 99 88 Ram . | . . . . . . . . Kick . | . . . . . . . . Crush . | . . . . . . . . Escape Stasis . | . . . . . . . . Rewire . | . . . . . . . . Trap . | . . . . . . . . Miscellaneous 136 | . 4 14 40 . . 67 11 Route ------- -11/Scrapyard -10/Materials (discovered 4 exits: *Mat x3 / *Min) -10/Mines (discovered 2 exits: *Mat x2) -9/Materials (discovered 4 exits: *Mat x3 / *Min) -9/Mines -9/Exiles (discovered 2 exits: *Min x2) -8/Mines (discovered 2 exits: *Mat x2) -8/Materials (discovered 3 exits: *Fac x3) History --------- Turn | Location | Event 7 | -11/Scrapyard | Discovered new exit (range 16) 14 | -11/Scrapyard | Entered Materials 24 | -10/Materials | Upgraded with Propulsion slot (x1) 124 | -10/Materials | Identified exit to Mines 124 | -10/Materials | Identified exit to Materials 257 | -10/Materials | Central database locked down 317 | -10/Materials | Entered Mines 319 | -10/Mines | Reached level 2 321 | -10/Mines | Met a Derelict who couldn't figure out how to use a Trap Extractor 335 | -10/Mines | Discovered exit to Materials (range 4) 343 | -10/Mines | Build established: Hacker-Mutant 345 | -10/Mines | Met a Derelict bent on vengeance 352 | -10/Mines | Learned Materials machine intel 376 | -10/Mines | Received a Rocket Launcher from a helpful Derelict 395 | -10/Mines | Discovered exit to Materials (range 10) 777 | -10/Mines | Entered Materials 778 | -9/Materials | Loaded intel: 55 machine locations 779 | -9/Materials | Reached level 3 813 | -9/Materials | Reached level 4 970 | -9/Materials | Discovered new exit (range 16) 1003 | -9/Materials | Identified exit to Materials 1003 | -9/Materials | Identified exit to Mines 1155 | -9/Materials | Upgraded with Utility slot (x1) 1155 | -9/Materials | Upgraded with Weapon slot (x1) 1205 | -9/Materials | Reached level 5 1479 | -9/Materials | Entered Mines 1480 | -9/Mines | Assisted by bots powering up and referring to "LRC-V3" 1481 | -9/Mines | Assembled infested the area 1481 | -9/Mines | Reached level 6 1528 | -9/Mines | Core integrity fell below 50% 1542 | -9/Mines | Deemed a non-threat by the Exiles lab entrance 1543 | -9/Mines | Discovered new exit (range 5) 1544 | -9/Mines | Entered Exiles 1549 | -9/Exiles | Discovered new exit (range 15) 1553 | -9/Exiles | Met 8R-AWN 1558 | -9/Exiles | Met EX-HEX 1570 | -9/Exiles | Met EX-DEC 1572 | -9/Exiles | Learned location of Zion (-6) 1581 | -9/Exiles | Discovered new exit (range 12) 1585 | -9/Exiles | Entered Mines 1773 | -8/Mines | Build established: Hacker-Sprinter 1783 | -8/Mines | Discovered exit to Materials (range 7) 1793 | -8/Mines | Reached level 7 2222 | -8/Mines | Reached level 8 2245 | -8/Mines | Discovered exit to Materials (range 5) 2279 | -8/Mines | Entered Materials 2281 | -8/Materials | Reached level 9 2380 | -8/Materials | Core integrity fell below 50% 2401 | -8/Materials | Core integrity fell below 20% 2441 | -8/Materials | Upgraded with Utility slot (x1) 2443 | -8/Materials | Upgraded with Utility slot (x5) 2577 | -8/Materials | Discovered new exit (range 12) 2653 | -8/Materials | Reached level 10 2678 | -8/Materials | Destroyed 8 combat bots 2720 | -8/Materials | Identified exit to Factory 2802 | -8/Materials | Repaired Lgt. Angular Momentum Engine? 2863 | -8/Materials | Destroyed by G-47 Trooper with Particle Gun Last Messages --------------- Trojan loaded successfully. Testing... Tracking enabled and active. 02831_ Connecting with Terminal... 02836_ Sneak attack on A-02 Transporter. 02836_ Destroyed Weight Redist. System. 02836_ A-02 Transporter system corrupted by crushing effect. 02837_ A-02 Transporter system terminally corrupted. 02837_ Ion Engine fried. 02837_ Transport Network Coupler fried. 02839_ Dropped Imp. Flight Unit. 02840_ Acquired Prototype Flight Unit. 02840_ Identified Imp. VTOL Module. 02846_ K-01 Serf collects debris. 02849_ Upgraded: Core Integrity (+100) 02850_ W-25 Informer sends out distress signal. 02854_ G-47 Trooper destroyed. 02856_ K-01 Serf collects debris. 02857_ Flail follow-up attack on G-47 Trooper. 02857_ G-47 Trooper knocked back. Map ----- +----------------------------------------------------+ | ?????????????????????????????????????????????????? | | ???????????????o?????????????????????????????????? | | ?????????????????????????????????????????????????? | | ??????????????????????o??????????????????????????? | | ?????????????????????????????????????????????????? | | ?????????????????????????????????????????????????? | | ???????????????????????????????????w????????##+### | | ???????????????????????????????????????????? | | ????????????????????????????????????????????? | | ?????????????????????????????????????????????? | | ???????????????????############??????########## | | ???????????????????# ???????# # | | ??????????? ?????# """"???????# * T #k | | ??????????? #????# """""??????# + | | ??????????? t#????# """"" +????+ """ # = | | ??????????? #????# #????# """""# | | ??????????# t#????####+######### #??# """""# [% | | ??????????# #?????# #??# """""# =[ | | ??????????# #?????# #####????# """ # | | ??????????# #?????# #????????#! # | | ??????????# #?????# #????????###+###### | | ???#####??# #?????# #+#####+###??# #????# | | ?? #??# ####### # #??#u#????# | | ?"" = #??# ##"T"## # u #??# #???## | | """" #??# ^ g # !#?## ##### | | """" #??# w a @# !! #?# | | """" #??# =![ """"" %+[ ![ ### | | """ #??# =![ """"" # + | | #??#^ ^! ^ """"" # ### #### | | *#??# ! # #?# #??##### | | #??#^ ###########?# #??????? | | ###+####### / ! / #???????????# #??????? | | / #????#####??# #??????? | | < %[ % #???##" "#### #??????? | | =%% #???# #??????? | | ##########+## ##?##= #??????? | | ! =%%# #################""" [ #??????? | | """ [T%#u#???????# [%#"R % #??????? | | ? """ ] # #???????#""" !!#""" [ #??????? | | ?] """ # #???????#"R # #??????? | | ?? #a#???????#""" # #??????? | | ############# ###?????# =* *# #??????? | | ######## ##########+#### #??????? | | # %%% """ #??????? | | # k """ #??????? | | # % % """ #??????? | | # #### ##############! #??????? | | # ######/####???????????# #??????? | | # ## #######?????# """ #??????? | | #### ## # ####### """ #####??? | +----------------------------------------------------+ Best States ------------- Heat Dissipation 25 Energy Generation 18 Energy Capacity 160 Matter Stores 300 Matter Capacity 300 Sight Range 18 Terrain Scan Density 10 Evasion (%) 69 Melee Accuracy 15 Target Analysis 5 Offensive Hacking 10 Defensive Hacking 15 Item Schematics ----------------- Hacking Suite | -8/Materials | Hacked System Shield | -8/Materials | Hacked Robot Schematics ------------------ None Fabricated ------------ Nothing Alien Tech Used ----------------- None Achievements -------------- None Challenges ------------ None RPGLIKE | -11 -10 -10 -9 -9 -9 -8 -8 --------- Run | Scr Mat Min Mat Min Exi Min Mat Levels Raised 9 | . . 1 3 1 . 2 2 XP Earned 17531 | 3000 1245 1640 4210 500 200 2950 3786 XP Spent 14710 | . 2950 1400 1000 . . . 9360 Upgrades 22 | . 8 4 2 . . . 8 Propulsion Slot 1 | . 1 . . . . . . Utility Slot 7 | . . . 1 . . . 6 Weapon Slot 1 | . . . 1 . . . . Core Integrity 2 | . . . . . . . 2 Mass Support 1 | . 1 . . . . . . Inventory Capacity 1 | . 1 . . . . . . Melee Accuracy 4 | . . 4 . . . . . Hack Attack % 2 | . 2 . . . . . . Hack Defense % 3 | . 3 . . . . . . Protomatter Created 1172 | . 43 99 234 . . 665 131 Integrity Restored 2837 | . 75 297 841 . . 1390 234 Core 2598 | . 75 297 756 . . 1236 234 Parts 239 | . . . 85 . . 154 . Protomatter Decayed 314 | . 18 . 59 31 . 195 11 Game ------ Seed CooledShockWarhead Manual? 0 Play Time 00:48:25 Cumulative 140.0 hours Start 2020.01.16 @ 21:08:03 End 2020.01.16 @ 22:38:42 Sessions 1 Manual Loads 0 Difficulty Rogue Special Mode Winter2019/RPGLIKE Game No. 145 Rogue 145 Adventurer 0 Explorer 0 Win Type - Total 12 Types 11/0/0/1/0/0/0 Lore% 72 Gallery% 72 Achievement% 64 Wizard Run 0 Options --------- ASCII 0 Keyboard 0 Movement Numpad Keybinds 0 Fullscreen 2 Font 18/SmallcapsGlow Map View 76x50 Tactical HUD 1 Map Filters NONE Filters NONE Steam 1 RUN: ae91b100-1005-4ac7-904b-4e0774bd524e